[Event "Titled Tuesday Blitz August 1 Early 2023"]
[White "Porter, Ryan W"]
[Black "Li, Hui"]
[WhiteFideId "2011239"]
[BlackFideId "15400310"]
[WhiteElo "2551"]
[BlackElo "2374"]
[Result "1-0"]
[Round "3"]
[TimeControl "180+1"]
[Date "2023.08.01"]
[WhiteClock "0:00:10"]
[BlackClock "0:00:02"]
[Board "155"]

1. e4 {[%clk 0:03:00]}  e5 {[%clk 0:01:57]} 2. f4 {[%clk 0:03:00]}  d5 {[%clk 0:01:56]} 3. exd5 {[%clk 0:03:00]}  e4 {[%clk 0:01:57]} 4. d3 {[%clk 0:03:00]}  Nf6 {[%clk 0:01:57]} 5. dxe4 {[%clk 0:02:54]}  Nxe4 {[%clk 0:01:57]} 6. Nf3 {[%clk 0:02:53]}  Bc5 {[%clk 0:01:57]} 7. Qe2 {[%clk 0:02:52]}  Bf5 {[%clk 0:01:54]} 8. Nc3 {[%clk 0:02:36]}  Qe7 {[%clk 0:01:53]} 9. Be3 {[%clk 0:02:33]}  Nxc3 {[%clk 0:01:53]} 10. Bxc5 {[%clk 0:02:31]}  Qxe2+ {[%clk 0:01:53]} 11. Bxe2 {[%clk 0:02:29]}  Nxe2 {[%clk 0:01:52]} 12. Kxe2 {[%clk 0:02:28]}  Na6 {[%clk 0:01:53]} 13. Ba3 {[%clk 0:02:08]}  Bxc2 {[%clk 0:01:51]} 14. Kd2 {[%clk 0:01:58]}  Be4 {[%clk 0:01:50]} 15. Rhe1 {[%clk 0:01:28]}  f5 {[%clk 0:01:50]} 16. Ng5 {[%clk 0:01:27]}  O-O-O {[%clk 0:01:40]} 17. Nxe4 {[%clk 0:01:24]}  Rxd5+ {[%clk 0:01:30]} 18. Kc2 {[%clk 0:01:21]}  fxe4 {[%clk 0:01:28]} 19. Rxe4 {[%clk 0:01:22]}  Rhd8 {[%clk 0:01:18]} 20. Re2 {[%clk 0:01:19]}  g6 {[%clk 0:01:04]} 21. Rae1 {[%clk 0:01:17]}  Nb8 {[%clk 0:00:58]} 22. Be7 {[%clk 0:01:11]}  Rg8 {[%clk 0:00:36]} 23. Bb4 {[%clk 0:01:03]}  Nc6 {[%clk 0:00:35]} 24. Bc3 {[%clk 0:00:55]}  Nd4+ {[%clk 0:00:32]} 25. Bxd4 {[%clk 0:00:55]}  Rxd4 {[%clk 0:00:33]} 26. Re8+ {[%clk 0:00:41]}  Rxe8 {[%clk 0:00:33]} 27. Rxe8+ {[%clk 0:00:42]}  Rd8 {[%clk 0:00:27]} 28. Rxd8+ {[%clk 0:00:33]}  Kxd8 {[%clk 0:00:28]} 29. Kd3 {[%clk 0:00:31]}  Ke7 {[%clk 0:00:27]} 30. Ke4 {[%clk 0:00:29]}  Ke6 {[%clk 0:00:21]} 31. g4 {[%clk 0:00:26]}  c6 {[%clk 0:00:17]} 32. b4 {[%clk 0:00:19]}  b6 {[%clk 0:00:17]} 33. a3 {[%clk 0:00:18]}  Kf6 {[%clk 0:00:14]} 34. h3 {[%clk 0:00:15]}  Ke6 {[%clk 0:00:14]} 35. Kd4 {[%clk 0:00:15]}  Kf6 {[%clk 0:00:12]} 36. Ke4 {[%clk 0:00:11]}  Ke6 {[%clk 0:00:12]} 37. h4 {[%clk 0:00:10]}  Kf6 {[%clk 0:00:10]} 38. f5 {[%clk 0:00:09]}  gxf5+ {[%clk 0:00:05]} 39. gxf5 {[%clk 0:00:10]}  h6 {[%clk 0:00:02]} 40. a4 {[%clk 0:00:08]}  a6 {[%clk 0:00:02]} 41. a5 {[%clk 0:00:07]}  bxa5 {[%clk 0:00:01]} 42. bxa5 {[%clk 0:00:07]}  c5 {[%clk 0:00:01]} 43. Kd5 {[%clk 0:00:07]}  Kxf5 {[%clk 0:00:01]} 44. Kxc5 {[%clk 0:00:08]}  Kg4 {[%clk 0:00:02]} 45. Kb6 {[%clk 0:00:09]}  Kxh4 {[%clk 0:00:02]} 46. Kxa6 {[%clk 0:00:09]}  h5 {[%clk 0:00:03]} 47. Kb6 {[%clk 0:00:10]}  Kg3 {[%clk 0:00:03]} 48. a6 {[%clk 0:00:10]}  h4 {[%clk 0:00:03]} 49. a7 {[%clk 0:00:10]}  h3 {[%clk 0:00:04]} 50. a8=Q {[%clk 0:00:11]}  h2 {[%clk 0:00:02]} 51. Qh1 {[%clk 0:00:10]} 1-0


[Site "https://www.chess.com"]

[Event "Titled Tuesday Blitz August 1 Early 2023"]
[White "Onufrienko, Vladislav"]
[Black "Elissalt Cardenas, Hector"]
[WhiteFideId "13804332"]
[BlackFideId "3500632"]
[WhiteElo "2551"]
[BlackElo "2359"]
[Result "1-0"]
[Round "3"]
[TimeControl "180+1"]
[Date "2023.08.01"]
[WhiteClock "0:00:51"]
[BlackClock "0:00:07"]
[Board "156"]

1. e4 {[%clk 0:03:00]}  d6 {[%clk 0:02:31]} 2. d4 {[%clk 0:03:00]}  Nf6 {[%clk 0:02:30]} 3. Nc3 {[%clk 0:03:00]}  e5 {[%clk 0:02:29]} 4. f4 {[%clk 0:03:00]}  exd4 {[%clk 0:02:29]} 5. Qxd4 {[%clk 0:03:01]}  Nc6 {[%clk 0:02:28]} 6. Qf2 {[%clk 0:03:01]}  Be7 {[%clk 0:02:24]} 7. Bd3 {[%clk 0:03:02]}  O-O {[%clk 0:02:24]} 8. Nf3 {[%clk 0:03:02]}  Nb4 {[%clk 0:02:18]} 9. O-O {[%clk 0:03:02]}  Nxd3 {[%clk 0:02:18]} 10. cxd3 {[%clk 0:03:03]}  c5 {[%clk 0:02:17]} 11. Kh1 {[%clk 0:03:01]}  Rb8 {[%clk 0:02:06]} 12. a4 {[%clk 0:03:01]}  b6 {[%clk 0:02:05]} 13. h3 {[%clk 0:02:59]}  Ba6 {[%clk 0:01:55]} 14. Rd1 {[%clk 0:02:52]}  Qc8 {[%clk 0:01:42]} 15. Be3 {[%clk 0:02:44]}  Rd8 {[%clk 0:01:33]} 16. Rd2 {[%clk 0:01:57]}  d5 {[%clk 0:01:29]} 17. e5 {[%clk 0:01:49]}  Ne8 {[%clk 0:01:26]} 18. d4 {[%clk 0:01:45]}  Bc4 {[%clk 0:01:17]} 19. g4 {[%clk 0:01:39]}  g6 {[%clk 0:01:10]} 20. Qg3 {[%clk 0:01:37]}  Ng7 {[%clk 0:01:10]} 21. Rf2 {[%clk 0:01:37]}  Bd3 {[%clk 0:01:06]} 22. Kh2 {[%clk 0:01:32]}  Be4 {[%clk 0:01:04]} 23. Raf1 {[%clk 0:01:32]}  h5 {[%clk 0:00:52]} 24. Nd2 {[%clk 0:01:28]}  Bd3 {[%clk 0:00:47]} 25. Rg1 {[%clk 0:01:28]}  cxd4 {[%clk 0:00:40]} 26. Bxd4 {[%clk 0:01:27]}  Ne6 {[%clk 0:00:40]} 27. Qxd3 {[%clk 0:01:25]}  Nxd4 {[%clk 0:00:38]} 28. Qxd4 {[%clk 0:01:26]}  Bc5 {[%clk 0:00:38]} 29. Qd3 {[%clk 0:01:15]}  Bxf2 {[%clk 0:00:38]} 30. Rg2 {[%clk 0:01:16]}  hxg4 {[%clk 0:00:19]} 31. Rxf2 {[%clk 0:01:15]}  gxh3 {[%clk 0:00:19]} 32. f5 {[%clk 0:01:09]}  gxf5 {[%clk 0:00:18]} 33. Rxf5 {[%clk 0:01:06]}  Rb7 {[%clk 0:00:18]} 34. Rg5+ {[%clk 0:01:04]}  Kf8 {[%clk 0:00:18]} 35. Qh7 {[%clk 0:01:02]}  d4 {[%clk 0:00:16]} 36. Nce4 {[%clk 0:01:01]}  Qe6 {[%clk 0:00:13]} 37. Rg8+ {[%clk 0:00:50]}  Ke7 {[%clk 0:00:07]} 38. Qh4+ {[%clk 0:00:51]} 1-0


[Site "https://www.chess.com"]

[Event "Titled Tuesday Blitz August 1 Early 2023"]
[White "Eynullayev, Altay"]
[Black "Nithyalakshmi, Sivanesan"]
[WhiteFideId "13413562"]
[BlackFideId "5706955"]
[WhiteElo "2548"]
[BlackElo "2346"]
[Result "0-1"]
[Round "3"]
[TimeControl "180+1"]
[Date "2023.08.01"]
[WhiteClock "0:00:09"]
[BlackClock "0:00:15"]
[Board "158"]

1. e4 {[%clk 0:03:00]}  e6 {[%clk 0:02:59]} 2. d4 {[%clk 0:03:00]}  d5 {[%clk 0:02:59]} 3. e5 {[%clk 0:03:00]}  Bd7 {[%clk 0:02:59]} 4. Nf3 {[%clk 0:02:56]}  a6 {[%clk 0:02:58]} 5. a4 {[%clk 0:02:53]}  c5 {[%clk 0:02:49]} 6. c3 {[%clk 0:02:34]}  c4 {[%clk 0:02:45]} 7. Be2 {[%clk 0:02:21]}  Nc6 {[%clk 0:02:42]} 8. Bg5 {[%clk 0:02:19]}  Be7 {[%clk 0:02:41]} 9. h4 {[%clk 0:02:19]}  h6 {[%clk 0:02:40]} 10. Bf4 {[%clk 0:02:11]}  b5 {[%clk 0:02:33]} 11. h5 {[%clk 0:02:01]}  Na5 {[%clk 0:02:25]} 12. axb5 {[%clk 0:01:58]}  axb5 {[%clk 0:02:25]} 13. Nbd2 {[%clk 0:01:58]}  b4 {[%clk 0:02:20]} 14. O-O {[%clk 0:01:50]}  b3 {[%clk 0:02:04]} 15. g4 {[%clk 0:01:23]}  g5 {[%clk 0:01:40]} 16. hxg6 {[%clk 0:01:07]}  fxg6 {[%clk 0:01:40]} 17. Qb1 {[%clk 0:01:07]}  Kf7 {[%clk 0:01:39]} 18. Kg2 {[%clk 0:01:06]}  g5 {[%clk 0:01:34]} 19. Bg3 {[%clk 0:01:06]}  Bf8 {[%clk 0:01:30]} 20. Nh2 {[%clk 0:01:02]}  Kg7 {[%clk 0:01:21]} 21. f4 {[%clk 0:01:00]}  gxf4 {[%clk 0:01:07]} 22. Rxf4 {[%clk 0:01:01]}  Be7 {[%clk 0:01:05]} 23. Qf1 {[%clk 0:00:52]}  Qe8 {[%clk 0:01:02]} 24. Nhf3 {[%clk 0:00:40]}  Bg5 {[%clk 0:00:59]} 25. Nxg5 {[%clk 0:00:39]}  hxg5 {[%clk 0:00:59]} 26. Rf6 {[%clk 0:00:38]}  Nxf6 {[%clk 0:00:56]} 27. exf6+ {[%clk 0:00:38]}  Kf7 {[%clk 0:00:54]} 28. Nf3 {[%clk 0:00:39]}  Qf8 {[%clk 0:00:33]} 29. Ne5+ {[%clk 0:00:37]}  Ke8 {[%clk 0:00:33]} 30. Qf3 {[%clk 0:00:24]}  Qh6 {[%clk 0:00:29]} 31. Bxc4 {[%clk 0:00:24]}  Qh3+ {[%clk 0:00:28]} 32. Kf2 {[%clk 0:00:23]}  Ra7 {[%clk 0:00:18]} 33. Nxd7 {[%clk 0:00:21]}  Kxd7 {[%clk 0:00:17]} 34. Bb5+ {[%clk 0:00:21]}  Kd8 {[%clk 0:00:15]} 35. f7 {[%clk 0:00:20]}  Rf8 {[%clk 0:00:15]} 36. Qf6+ {[%clk 0:00:20]}  Kc8 {[%clk 0:00:15]} 37. Qxe6+ {[%clk 0:00:20]}  Kd8 {[%clk 0:00:14]} 38. Rxa5 {[%clk 0:00:17]}  Rfxf7+ {[%clk 0:00:14]} 39. Qf5 {[%clk 0:00:06]}  Rxf5+ {[%clk 0:00:14]} 40. gxf5 {[%clk 0:00:07]}  Rxa5 {[%clk 0:00:14]} 41. Bd3 {[%clk 0:00:06]}  Ra7 {[%clk 0:00:14]} 42. f6 {[%clk 0:00:06]}  Qg4 {[%clk 0:00:14]} 43. Be5 {[%clk 0:00:06]}  Rf7 {[%clk 0:00:13]} 44. Bg6 {[%clk 0:00:05]}  Rf8 {[%clk 0:00:13]} 45. f7 {[%clk 0:00:05]}  Ke7 {[%clk 0:00:13]} 46. c4 {[%clk 0:00:05]}  dxc4 {[%clk 0:00:13]} 47. Ke3 {[%clk 0:00:06]}  Qh3+ {[%clk 0:00:13]} 48. Ke4 {[%clk 0:00:06]}  Qe6 {[%clk 0:00:13]} 49. d5 {[%clk 0:00:06]}  Qxg6+ {[%clk 0:00:14]} 50. Kd4 {[%clk 0:00:07]}  Qxf7 {[%clk 0:00:14]} 51. Kc5 {[%clk 0:00:08]}  Kd8 {[%clk 0:00:15]} 52. d6 {[%clk 0:00:09]}  Qd7 {[%clk 0:00:15]} 53. Bd4 {[%clk 0:00:09]}  Rf5+ {[%clk 0:00:16]} 54. Kb4 {[%clk 0:00:09]}  Qxd6+ {[%clk 0:00:15]} 55. Kxc4 {[%clk 0:00:09]}  Qc6+ {[%clk 0:00:15]} 0-1


[Site "https://www.chess.com"]

[Event "Titled Tuesday Blitz August 1 Early 2023"]
[White "SicilianPanzer"]
[Black "Womacka, Mathias"]
[BlackFideId "4611390"]
[WhiteElo "2314"]
[BlackElo "2543"]
[Result "0-1"]
[Round "3"]
[TimeControl "180+1"]
[Date "2023.08.01"]
[WhiteClock "0:00:06"]
[BlackClock "0:00:03"]
[Board "163"]

1. e4 {[%clk 0:03:00]}  c5 {[%clk 0:02:59]} 2. Nf3 {[%clk 0:02:58]}  d6 {[%clk 0:02:58]} 3. d4 {[%clk 0:02:57]}  cxd4 {[%clk 0:02:59]} 4. Nxd4 {[%clk 0:02:57]}  Nf6 {[%clk 0:03:00]} 5. Nc3 {[%clk 0:02:57]}  a6 {[%clk 0:03:00]} 6. Be3 {[%clk 0:02:57]}  e5 {[%clk 0:02:59]} 7. Nb3 {[%clk 0:02:56]}  Be7 {[%clk 0:02:59]} 8. h3 {[%clk 0:02:55]}  Be6 {[%clk 0:02:48]} 9. Qf3 {[%clk 0:02:55]}  Nbd7 {[%clk 0:02:45]} 10. g4 {[%clk 0:02:52]}  h6 {[%clk 0:02:40]} 11. O-O-O {[%clk 0:02:50]}  b5 {[%clk 0:02:40]} 12. Nd5 {[%clk 0:02:34]}  Bxd5 {[%clk 0:02:40]} 13. exd5 {[%clk 0:02:33]}  Rc8 {[%clk 0:02:39]} 14. Kb1 {[%clk 0:02:14]}  Nb6 {[%clk 0:02:39]} 15. h4 {[%clk 0:01:50]}  Qc7 {[%clk 0:02:03]} 16. Bxb6 {[%clk 0:01:39]}  Qxb6 {[%clk 0:02:04]} 17. g5 {[%clk 0:01:38]}  hxg5 {[%clk 0:02:01]} 18. hxg5 {[%clk 0:01:39]}  Rxh1 {[%clk 0:02:00]} 19. Qxh1 {[%clk 0:01:39]}  Qxf2 {[%clk 0:01:53]} 20. Bd3 {[%clk 0:01:06]}  Ng4 {[%clk 0:01:02]} 21. Rf1 {[%clk 0:00:41]}  Qh2 {[%clk 0:00:43]} 22. Qf3 {[%clk 0:00:36]}  Qh4 {[%clk 0:00:06]} 23. Bf5 {[%clk 0:00:17]}  Nh2 {[%clk 0:00:04]} 24. Qg2 {[%clk 0:00:08]}  Nxf1 {[%clk 0:00:04]} 25. Bxc8 {[%clk 0:00:06]}  Qe1+ {[%clk 0:00:03]} 26. Nc1 {[%clk 0:00:05]}  Nd2+ {[%clk 0:00:03]} 27. Qxd2 {[%clk 0:00:05]}  Qxd2 {[%clk 0:00:03]} 28. Bxa6 {[%clk 0:00:06]}  Bxg5 {[%clk 0:00:02]} 29. Bxb5+ {[%clk 0:00:05]}  Ke7 {[%clk 0:00:01]} 30. a4 {[%clk 0:00:05]}  Qxc1+ {[%clk 0:00:01]} 31. Ka2 {[%clk 0:00:05]}  Qxc2 {[%clk 0:00:02]} 32. a5 {[%clk 0:00:05]}  Qc5 {[%clk 0:00:03]} 33. Bc6 {[%clk 0:00:04]}  Qxa5+ {[%clk 0:00:03]} 34. Kb3 {[%clk 0:00:05]}  Be3 {[%clk 0:00:03]} 35. Kc4 {[%clk 0:00:05]}  Bd4 {[%clk 0:00:04]} 36. b4 {[%clk 0:00:05]}  Qb6 {[%clk 0:00:04]} 37. b5 {[%clk 0:00:05]}  g5 {[%clk 0:00:04]} 38. Kb3 {[%clk 0:00:05]}  g4 {[%clk 0:00:03]} 39. Ka4 {[%clk 0:00:06]} 0-1


[Site "https://www.chess.com"]

[Event "Titled Tuesday Blitz August 1 Early 2023"]
[White "Ibadov, Dashgyn"]
[Black "Andreassen, Lars"]
[WhiteFideId "24107514"]
[BlackFideId "1504878"]
[WhiteElo "2533"]
[BlackElo "2262"]
[Result "1/2-1/2"]
[Round "3"]
[TimeControl "180+1"]
[Date "2023.08.01"]
[WhiteClock "0:00:05"]
[BlackClock "0:00:06"]
[Board "170"]

1. e4 {[%clk 0:03:00]}  d6 {[%clk 0:02:55]} 2. d4 {[%clk 0:03:00]}  Nf6 {[%clk 0:02:55]} 3. Nc3 {[%clk 0:03:00]}  e5 {[%clk 0:02:55]} 4. Nf3 {[%clk 0:02:59]}  Nbd7 {[%clk 0:02:54]} 5. a4 {[%clk 0:03:00]}  Be7 {[%clk 0:02:54]} 6. Bc4 {[%clk 0:03:00]}  O-O {[%clk 0:02:54]} 7. O-O {[%clk 0:03:00]}  c6 {[%clk 0:02:55]} 8. h3 {[%clk 0:03:00]}  h6 {[%clk 0:02:54]} 9. Re1 {[%clk 0:03:00]}  Qc7 {[%clk 0:02:54]} 10. Be3 {[%clk 0:02:58]}  a5 {[%clk 0:02:54]} 11. Ba2 {[%clk 0:02:44]}  b6 {[%clk 0:02:48]} 12. d5 {[%clk 0:02:42]}  Bb7 {[%clk 0:02:38]} 13. dxc6 {[%clk 0:02:39]}  Bxc6 {[%clk 0:02:38]} 14. Nd2 {[%clk 0:02:28]}  Nc5 {[%clk 0:02:27]} 15. Bxc5 {[%clk 0:02:13]}  dxc5 {[%clk 0:02:23]} 16. Nd5 {[%clk 0:02:13]}  Qb7 {[%clk 0:02:10]} 17. Nxf6+ {[%clk 0:01:49]}  Bxf6 {[%clk 0:02:10]} 18. Qe2 {[%clk 0:01:40]}  Rad8 {[%clk 0:02:08]} 19. Nf1 {[%clk 0:01:34]}  Bg5 {[%clk 0:02:03]} 20. Bc4 {[%clk 0:01:18]}  Rd4 {[%clk 0:01:50]} 21. f3 {[%clk 0:01:15]}  Rfd8 {[%clk 0:01:50]} 22. b3 {[%clk 0:01:09]}  Qd7 {[%clk 0:01:40]} 23. c3 {[%clk 0:01:04]}  Rd6 {[%clk 0:01:36]} 24. Kh2 {[%clk 0:00:56]}  Bf4+ {[%clk 0:01:34]} 25. g3 {[%clk 0:00:56]}  Bd2 {[%clk 0:01:34]} 26. Red1 {[%clk 0:00:49]}  Bxc3 {[%clk 0:01:34]} 27. Rxd6 {[%clk 0:00:46]}  Qxd6 {[%clk 0:01:34]} 28. Rc1 {[%clk 0:00:46]}  Bd4 {[%clk 0:01:29]} 29. Kg2 {[%clk 0:00:43]}  Qg6 {[%clk 0:01:27]} 30. Rd1 {[%clk 0:00:39]}  Kh7 {[%clk 0:01:24]} 31. Ne3 {[%clk 0:00:37]}  Qg5 {[%clk 0:00:40]} 32. Nf5 {[%clk 0:00:35]}  g6 {[%clk 0:00:34]} 33. h4 {[%clk 0:00:34]}  Qf6 {[%clk 0:00:29]} 34. Nxd4 {[%clk 0:00:23]}  Rxd4 {[%clk 0:00:26]} 35. Rxd4 {[%clk 0:00:17]}  cxd4 {[%clk 0:00:26]} 36. Bd5 {[%clk 0:00:16]}  Bxd5 {[%clk 0:00:22]} 37. exd5 {[%clk 0:00:17]}  Qd6 {[%clk 0:00:22]} 38. Qc4 {[%clk 0:00:17]}  f5 {[%clk 0:00:20]} 39. Qc6 {[%clk 0:00:16]}  Qb4 {[%clk 0:00:16]} 40. Qd7+ {[%clk 0:00:16]}  Kg8 {[%clk 0:00:16]} 41. Qe8+ {[%clk 0:00:16]}  Kg7 {[%clk 0:00:16]} 42. Qxe5+ {[%clk 0:00:16]}  Kh7 {[%clk 0:00:16]} 43. d6 {[%clk 0:00:16]}  Qd2+ {[%clk 0:00:12]} 44. Kh3 {[%clk 0:00:15]}  Qf2 {[%clk 0:00:11]} 45. g4 {[%clk 0:00:04]}  Qf1+ {[%clk 0:00:10]} 46. Kg3 {[%clk 0:00:04]}  Qg1+ {[%clk 0:00:07]} 47. Kh3 {[%clk 0:00:05]}  Qh1+ {[%clk 0:00:06]} 48. Kg3 {[%clk 0:00:05]}  Qg1+ {[%clk 0:00:06]} 49. Kh3 {[%clk 0:00:05]}  Qh1+ {[%clk 0:00:06]} 50. Kg3 {[%clk 0:00:05]}  Qg1+ {[%clk 0:00:06]} 1/2-1/2


[Site "https://www.chess.com"]

[Event "Titled Tuesday Blitz August 1 Early 2023"]
[White "Mekhane, Adam"]
[Black "Tqebuchava, Zurab"]
[WhiteFideId "36050601"]
[BlackFideId "13601113"]
[WhiteElo "2533"]
[BlackElo "2257"]
[Result "1-0"]
[Round "3"]
[TimeControl "180+1"]
[Date "2023.08.01"]
[WhiteClock "0:00:04"]
[BlackClock "0:00:00"]
[Board "171"]

1. e4 {[%clk 0:03:00]}  d6 {[%clk 0:02:59]} 2. d4 {[%clk 0:02:59]}  Nf6 {[%clk 0:02:58]} 3. Nc3 {[%clk 0:02:57]}  Nbd7 {[%clk 0:02:55]} 4. Nf3 {[%clk 0:02:55]}  e5 {[%clk 0:02:54]} 5. Bc4 {[%clk 0:02:54]}  Nb6 {[%clk 0:02:54]} 6. Bb3 {[%clk 0:02:53]}  Bg4 {[%clk 0:02:33]} 7. dxe5 {[%clk 0:02:53]}  Bxf3 {[%clk 0:02:29]} 8. Qxf3 {[%clk 0:02:53]}  dxe5 {[%clk 0:02:28]} 9. O-O {[%clk 0:02:52]}  Bd6 {[%clk 0:02:18]} 10. Bg5 {[%clk 0:02:49]}  O-O {[%clk 0:02:19]} 11. Bxf6 {[%clk 0:02:48]}  Qxf6 {[%clk 0:02:17]} 12. Qxf6 {[%clk 0:02:48]}  gxf6 {[%clk 0:02:17]} 13. a4 {[%clk 0:02:46]}  a5 {[%clk 0:02:14]} 14. Nb5 {[%clk 0:02:44]}  Rac8 {[%clk 0:02:03]} 15. Rad1 {[%clk 0:02:03]}  Bc5 {[%clk 0:01:59]} 16. Rd3 {[%clk 0:02:02]}  Rfd8 {[%clk 0:01:47]} 17. Rfd1 {[%clk 0:01:50]}  Rxd3 {[%clk 0:01:46]} 18. Rxd3 {[%clk 0:01:51]}  c6 {[%clk 0:01:29]} 19. Nd6 {[%clk 0:01:47]}  Bxd6 {[%clk 0:01:26]} 20. Rxd6 {[%clk 0:01:47]}  Kg7 {[%clk 0:01:25]} 21. g3 {[%clk 0:01:33]}  Rc7 {[%clk 0:01:24]} 22. c3 {[%clk 0:01:25]}  Rd7 {[%clk 0:01:21]} 23. Rxd7 {[%clk 0:01:25]}  Nxd7 {[%clk 0:01:22]} 24. Bc2 {[%clk 0:01:21]}  Nc5 {[%clk 0:01:17]} 25. b4 {[%clk 0:01:19]}  axb4 {[%clk 0:01:16]} 26. cxb4 {[%clk 0:01:20]}  Ne6 {[%clk 0:01:15]} 27. a5 {[%clk 0:01:07]}  Nd4 {[%clk 0:01:05]} 28. Bd1 {[%clk 0:01:07]}  f5 {[%clk 0:00:59]} 29. exf5 {[%clk 0:01:05]}  Nxf5 {[%clk 0:00:51]} 30. Kg2 {[%clk 0:00:47]}  Nd4 {[%clk 0:00:49]} 31. f4 {[%clk 0:00:45]}  Kf6 {[%clk 0:00:47]} 32. Kf2 {[%clk 0:00:42]}  Ke6 {[%clk 0:00:43]} 33. Ke3 {[%clk 0:00:38]}  f6 {[%clk 0:00:36]} 34. fxe5 {[%clk 0:00:27]}  fxe5 {[%clk 0:00:35]} 35. Ke4 {[%clk 0:00:25]}  Nb5 {[%clk 0:00:35]} 36. Bg4+ {[%clk 0:00:23]}  Kf6 {[%clk 0:00:30]} 37. Bd7 {[%clk 0:00:18]}  Nc3+ {[%clk 0:00:27]} 38. Kd3 {[%clk 0:00:18]}  Nd5 {[%clk 0:00:26]} 39. Kc4 {[%clk 0:00:15]}  Ne3+ {[%clk 0:00:22]} 40. Kc5 {[%clk 0:00:12]}  e4 {[%clk 0:00:16]} 41. Bc8 {[%clk 0:00:12]}  Nc2 {[%clk 0:00:15]} 42. Bxb7 {[%clk 0:00:11]}  e3 {[%clk 0:00:15]} 43. Ba6 {[%clk 0:00:10]}  Ke5 {[%clk 0:00:14]} 44. Bf1 {[%clk 0:00:06]}  Nd4 {[%clk 0:00:11]} 45. a6 {[%clk 0:00:05]}  Nb3+ {[%clk 0:00:10]} 46. Kxc6 {[%clk 0:00:04]}  Nd2 {[%clk 0:00:09]} 47. Be2 {[%clk 0:00:04]}  Nb3 {[%clk 0:00:06]} 48. a7 {[%clk 0:00:03]}  Nd4+ {[%clk 0:00:06]} 49. Kb7 {[%clk 0:00:03]}  Nxe2 {[%clk 0:00:07]} 50. a8=Q {[%clk 0:00:04]}  Ke4 {[%clk 0:00:07]} 51. Qe8+ {[%clk 0:00:04]}  Kd3 {[%clk 0:00:07]} 52. Qb5+ {[%clk 0:00:04]}  Kd2 {[%clk 0:00:07]} 53. Qd5+ {[%clk 0:00:04]}  Ke1 {[%clk 0:00:06]} 54. Qh1+ {[%clk 0:00:04]}  Kd2 {[%clk 0:00:05]} 55. Qd5+ {[%clk 0:00:04]}  Ke1 {[%clk 0:00:05]} 56. Qd3 {[%clk 0:00:04]}  Kf2 {[%clk 0:00:05]} 57. b5 {[%clk 0:00:05]}  Ng1 {[%clk 0:00:04]} 58. Qf5+ {[%clk 0:00:04]}  Nf3 {[%clk 0:00:03]} 59. Qe4 {[%clk 0:00:03]}  e2 {[%clk 0:00:03]} 60. b6 {[%clk 0:00:02]}  e1=Q {[%clk 0:00:03]} 61. Qxe1+ {[%clk 0:00:02]}  Kxe1 {[%clk 0:00:04]} 62. Kc7 {[%clk 0:00:03]}  Nd4 {[%clk 0:00:04]} 63. b7 {[%clk 0:00:03]}  Nb5+ {[%clk 0:00:04]} 64. Kb6 {[%clk 0:00:03]}  Nd6 {[%clk 0:00:03]} 65. b8=Q {[%clk 0:00:03]}  Nc4+ {[%clk 0:00:03]} 66. Kc5 {[%clk 0:00:03]}  Ne5 {[%clk 0:00:00]} 67. Qe8 {[%clk 0:00:04]} 1-0


[Site "https://www.chess.com"]

[Event "Titled Tuesday Blitz August 1 Early 2023"]
[White "Ramu, K."]
[Black "Ismagilov, Damir"]
[WhiteFideId "5006171"]
[BlackFideId "34199982"]
[WhiteElo "2225"]
[BlackElo "2531"]
[Result "0-1"]
[Round "3"]
[TimeControl "180+1"]
[Date "2023.08.01"]
[WhiteClock "0:00:00"]
[BlackClock "0:00:02"]
[Board "176"]

1. e4 {[%clk 0:03:00]}  e5 {[%clk 0:02:59]} 2. f4 {[%clk 0:02:54]}  exf4 {[%clk 0:02:59]} 3. Bc4 {[%clk 0:02:51]}  d5 {[%clk 0:02:29]} 4. Bxd5 {[%clk 0:02:46]}  Nf6 {[%clk 0:02:29]} 5. Nc3 {[%clk 0:02:46]}  Bb4 {[%clk 0:02:08]} 6. Qf3 {[%clk 0:02:08]}  O-O {[%clk 0:02:02]} 7. Nge2 {[%clk 0:01:59]}  g5 {[%clk 0:01:59]} 8. h3 {[%clk 0:01:44]}  Nbd7 {[%clk 0:01:46]} 9. O-O {[%clk 0:01:30]}  Ne5 {[%clk 0:01:45]} 10. Qf2 {[%clk 0:01:28]}  c6 {[%clk 0:01:37]} 11. Bb3 {[%clk 0:01:22]}  Be6 {[%clk 0:01:36]} 12. d4 {[%clk 0:01:17]}  Ng6 {[%clk 0:01:35]} 13. Bd2 {[%clk 0:00:59]}  Qe7 {[%clk 0:01:22]} 14. Rae1 {[%clk 0:00:52]}  Rad8 {[%clk 0:01:12]} 15. a3 {[%clk 0:00:32]}  Ba5 {[%clk 0:01:06]} 16. d5 {[%clk 0:00:31]}  Bb6 {[%clk 0:01:01]} 17. Nd4 {[%clk 0:00:28]}  c5 {[%clk 0:00:54]} 18. Na4 {[%clk 0:00:22]}  cxd4 {[%clk 0:00:46]} 19. Nxb6 {[%clk 0:00:22]}  axb6 {[%clk 0:00:43]} 20. dxe6 {[%clk 0:00:22]}  fxe6 {[%clk 0:00:42]} 21. Bb4 {[%clk 0:00:22]}  Qd7 {[%clk 0:00:39]} 22. Bxf8 {[%clk 0:00:21]}  Rxf8 {[%clk 0:00:40]} 23. Rd1 {[%clk 0:00:17]}  Rd8 {[%clk 0:00:34]} 24. Qe2 {[%clk 0:00:15]}  Kg7 {[%clk 0:00:32]} 25. c3 {[%clk 0:00:16]}  e5 {[%clk 0:00:32]} 26. cxd4 {[%clk 0:00:15]}  exd4 {[%clk 0:00:33]} 27. e5 {[%clk 0:00:15]}  Ne8 {[%clk 0:00:23]} 28. e6 {[%clk 0:00:15]}  Qe7 {[%clk 0:00:22]} 29. Rfe1 {[%clk 0:00:15]}  Nf6 {[%clk 0:00:22]} 30. Qc4 {[%clk 0:00:13]}  f3 {[%clk 0:00:15]} 31. gxf3 {[%clk 0:00:10]}  Nf4 {[%clk 0:00:15]} 32. Rxd4 {[%clk 0:00:09]}  Rxd4 {[%clk 0:00:11]} 33. Qxd4 {[%clk 0:00:09]}  Nxh3+ {[%clk 0:00:12]} 34. Kh2 {[%clk 0:00:09]}  Nf4 {[%clk 0:00:12]} 35. Rg1 {[%clk 0:00:05]}  Ng6 {[%clk 0:00:03]} 36. Rxg5 {[%clk 0:00:05]}  Qc7+ {[%clk 0:00:04]} 37. f4 {[%clk 0:00:03]}  h6 {[%clk 0:00:02]} 38. Rg3 {[%clk 0:00:03]}  Qe7 {[%clk 0:00:01]} 39. Qe5 {[%clk 0:00:02]}  Kh7 {[%clk 0:00:01]} 40. Qd4 {[%clk 0:00:02]}  Nh5 {[%clk 0:00:01]} 41. Qf2 {[%clk 0:00:03]}  Qh4+ {[%clk 0:00:01]} 42. Kg1 {[%clk 0:00:02]}  Nxg3 {[%clk 0:00:02]} 43. Qg2 {[%clk 0:00:02]}  Qxf4 {[%clk 0:00:02]} 44. Kh2 {[%clk 0:00:00]}  Nf5+ {[%clk 0:00:02]} 0-1


[Site "https://www.chess.com"]